[Event "AI Cup Div-1 2023"]
[Site "Online"]
[Date "2023.09.29"]
[Round "4.3"]
[White "Carlsen, Magnus"]
[Black "Vachier-Lagrave, Maxime"]
[Result "1/2-1/2"]
[Annotator "TA"]
[ECO "D20"]
[WhiteElo "2839"]
[BlackElo "2727"]
[PlyCount "86"]
[EventDate "2023.09.18"]
[EventType "k.o."]
[EventCountry "NET"]
[SourceTitle "playchess.com"]
[Source "ChessBase"]
[SourceQuality "1"]
[TimeControl "900+3"]

{[%evp 9,86,16,43,51,44,52,57,21,20,18,20,15,21,14,22,13,34,40,39,33,68,52,94,28,107,96,83,30,41,0,39,37,91,67,90,94,54,70,506,487,555,153,424,404,466,433,379,364,844,806,1047,1002,12825,287,287,280,224,229,228,32,39,0,0,0,0,0,0,0,0,0,0,0,0,0,0,0,0,0,0]} 1. d4 {[%emt 0:00:03]} d5 {[%emt 0:00:03]} 2. c4 {[%emt 0:00:01]} dxc4 {[%emt 0:00:01]} 3. e4 {[%emt 0:00:01]} e5 {[%emt 0:00:02]} 4. Nf3 {[%emt 0:00:02]} Bb4+ {[%emt 0:00:05]} 5. Nc3 {[%emt 0:00:01]} Nf6 {[%emt 0:00:43]} 6. Nxe5 {[%emt 0:00:01] D20: Queen's Gambit Accepted: 3 e3 and 3 e4.} b5 {[%emt 0:00:00] Repels Qa4} 7. f3 {[%emt 0:00:06]} O-O {[%emt 0:00:06]} 8. a3 {[%emt 0:00:01] White is slightly better.} (8. a4 $5 {[%cal Ra4b5]} c6 9. Be3 $14) 8... Ba5 {[%emt 0:00:07][%cal Oc7c5]} 9. Be3 {[%emt 0:00:01]} Nfd7 {[%emt 0:01:05]} 10. Nxd7 {[%emt 0:00:30]} Nxd7 {[%emt 0:00:07]} 11. Be2 $36 {[%emt 0:00:02][%mdl 2048] White has good play.} a6 {[%emt 0:00:07]} 12. O-O {[%emt 0:00:03]} Bb7 {[%emt 0:00:28]} 13. a4 {[%emt 0:01:29]} c6 {[%emt 0:00:09] [#]} 14. e5 $146 {[%emt 0:00:51]} ({Predecessor:} 14. Qe1 f5 15. exf5 Rxf5 16. Bd1 Rf7 17. Qg3 Nf6 18. Bc2 Nd5 19. Bg5 Qb6 20. Qh4 {1-0 Firouzja,A (2785)-Mamedyarov,S (2738) Norway Chess 11th 2023 (2)}) 14... Re8 {[%emt 0:01:09][%cal Oc6c5]} 15. f4 {[%emt 0:02:20]} f5 {[%emt 0:01:30] Wards off Ne4} 16. d5 {[%emt 0:03:21]} (16. Qc2 $16) 16... Bxc3 {[%emt 0:01:50]} (16... Bb6 $11 17. Bxb6 Qxb6+ 18. Kh1 cxd5) 17. bxc3 {[%emt 0:00:34] Strongly threatening Bf3.} cxd5 {[%emt 0:00:02]} 18. Qc2 {[%emt 0:02:34]} ({Better is} 18. axb5 $16 axb5 19. Rxa8 Bxa8 20. Qd2) 18... g6 $11 {[%emt 0:01:17]} 19. g4 {[%emt 0:00:06][%cal Bg2g4,Bg4f5,Bf5f6][%mdl 32]} d4 {[%emt 0:00:44]} 20. Bxd4 {[%emt 0:00:03]} Nc5 {[%emt 0:00:05]} 21. axb5 {[%emt 0:01:24]} (21. Bxc4+ $2 bxc4 22. h3 Nb3 $19) 21... axb5 {[%emt 0:01:26] [#] And now ...Rxa1 would win.} 22. Rxa8 {[%emt 0:00:02]} (22. Bxc5 $2 Rxa1 23. Rxa1 Qd5 $19) 22... Bxa8 {[%emt 0:00:00]} 23. gxf5 {[%emt 0:00:00]} Nd3 $2 {[%emt 0:00:01][%mdl 8192]} 24. f6 $18 {[%emt 0:00:24]} Qd7 {[%emt 0:01:49]} 25. Qd1 $2 {[%emt 0:00:45]} (25. f5 $18 {and the rest is easy.} gxf5 26. Bxd3 cxd3 27. Qxd3) 25... b4 $2 {[%emt 0:00:15]} (25... Qh3 $16 {was called for.} 26. Bf3 Bxf3 27. Qxf3 Qxf3 28. Rxf3 Kf7) 26. Bg4 {[%emt 0:00:07]} ({Stronger than} 26. Bxd3 cxd3 27. Qxd3 bxc3 $11) 26... Qd5 {[%emt 0:00:18][%csl Ga8][%cal Rd5h1] [#]} 27. Bf3 {[%emt 0:00:02] Dodges Qh1+. A strong pair of Bishops.} Qd7 {[%emt 0:00:05]} 28. Bxa8 {[%emt 0:00:05]} Rxa8 $2 {[%emt 0:00:00]} (28... bxc3 29. Bxc3 (29. f7+ Kxf7 30. e6+ Rxe6 $16) 29... Qa7+ 30. Kg2 Qxa8+ 31. Kg3 (31. Qf3 Nxf4+ 32. Kg3 g5 $18) 31... Qa3) 29. Qf3 {[%emt 0:00:14] e6 would kill now.} Re8 {[%emt 0:01:21]} 30. f5 {[%emt 0:00:03] Threatening mate with fxg6.} gxf5 {[%emt 0:00:04]} 31. Qxf5 $2 {[%emt 0:00:30]} (31. Qg2+ Kf8 32. Rxf5) 31... Qxf5 {[%emt 0:00:04]} 32. Rxf5 {[%emt 0:00:00][%mdl 4096] Endgame KRB-KRN} Kf7 {[%emt 0:00:04]} 33. cxb4 {[%emt 0:00:04]} Nxb4 {[%emt 0:00:02]} 34. Kf2 $2 {[%emt 0:00:03]} ({White should play} 34. Rh5 $18 Kg6 35. Rh3) 34... Rc8 $1 $14 {[%emt 0:00:24]} 35. Rg5 {[%emt 0:00:04] Threatens to win with Rg7+.} Ke6 {[%emt 0:00:22] The position is equal.} 36. Rg7 {[%emt 0:00:03] Re7+ is the strong threat.} Nd5 {[%emt 0:00:01] Against Re7+} 37. Ra7 {[%emt 0:00:19] aiming for Ra6+.} c3 {[%emt 0:00:02]} 38. Ra6+ {[%emt 0:00:02]} Kf5 {[%emt 0:00:09]} 39. f7 {[%emt 0:00:01]} c2 {[%emt 0:00:21]} 40. Bb2 {[%emt 0:00:01]} Rf8 $1 {[%emt 0:00:20]} 41. e6 {[%emt 0:00:32]} Nc7 {[%emt 0:00:01][%csl LRa6,LRe6]} 42. Rc6 {[%emt 0:00:08] Chess con chili.} Nxe6 {[%emt 0:00:02]} 43. Rxc2 {[%emt 0:00:00]} Rxf7 {[%emt 0:00:00] Black escapes into a draw.   Weighted Error Value: White=0.32/Black=0.47} 1/2-1/2

[Event "AI Cup Div-1 2023"]
[Site "Online"]
[Date "2023.09.29"]
[Round "4.4"]
[White "Vachier-Lagrave, Maxime"]
[Black "Carlsen, Magnus"]
[Result "1/2-1/2"]
[Annotator "TA"]
[ECO "B12"]
[WhiteElo "2727"]
[BlackElo "2839"]
[PlyCount "57"]
[EventDate "2023.09.18"]
[EventType "k.o."]
[EventCountry "NET"]
[SourceTitle "playchess.com"]
[Source "ChessBase"]
[SourceQuality "1"]
[TimeControl "900+3"]

{[%evp 9,57,21,42,29,24,22,29,11,16,14,24,6,14,0,0,-7,-4,-7,-8,-5,29,25,45,36,39,31,62,62,77,54,158,147,191,183,178,0,0,0,0,0,0,0,0,0,0,0,0,0,0,0]} 1. e4 {[%emt 0:00:03][%cal Be2e4,Be4e5][%mdl 32]} c6 {[%emt 0:00:09]} 2. d4 {[%emt 0:00:13]} d5 {[%emt 0:00:02]} 3. e5 {[%emt 0:00:00]} Bf5 {[%emt 0:00:15]} 4. Nf3 {[%emt 0:00:02]} e6 {[%emt 0:00:02]} 5. Be2 {[%emt 0:00:01]} a5 {[%emt 0:00:03]} 6. O-O {[%emt 0:00:04] B12: Caro-Kann: Advance Variation.} a4 {[%emt 0:00:03]} 7. c4 {[%emt 0:00:34] [#]} dxc4 $146 {[%emt 0:00:03]} ({Predecessor:} 7... Ne7 8. Nc3 dxc4 9. Bxc4 Nd5 10. Qe2 Nd7 11. Ne4 Be7 12. Nd6+ Bxd6 13. exd6 O-O {0-1 Solovchuk,A (2303)-Harvey,M (2456) Titled Tuesday intern op 20th Sep Early blitz 2022 (2)}) 8. Bxc4 {[%emt 0:00:04] White has an edge.} Nd7 {[%emt 0:00:01]} 9. Nc3 {[%emt 0:00:13]} Nb6 {[%emt 0:00:11]} 10. Be2 {[%emt 0:00:03][%cal Bc4e2,Be2d3,Bd3c2][%mdl 32]} Ne7 {[%emt 0:00:38]} 11. Nh4 {[%emt 0:00:17]} h6 {[%emt 0:00:34]} 12. Nxf5 {[%emt 0:00:02]} Nxf5 {[%emt 0:00:04]} 13. Be3 {[%emt 0:00:02]} a3 {[%emt 0:00:01]} 14. Rb1 {[%emt 0:00:24]} Be7 {[%emt 0:01:04]} (14... Bb4 $5 {[%cal Ra3b2]}) 15. Bd3 {[%emt 0:00:42]} Nxe3 {[%emt 0:01:52]} 16. fxe3 {[%emt 0:00:03][%cal Of1f7] Strongly threatening Rxf7!} O-O {[%emt 0:00:01]} 17. Bc2 {[%emt 0:01:26]} Bg5 {[%emt 0:01:56]} 18. Qd3 {[%emt 0:00:14][%csl Gc2][%cal Rd3h7]} g6 {[%emt 0:00:01]} 19. g3 {[%emt 0:01:14] Hoping for h4. White is more active.} (19. b4 {simplifies} Nd5 20. Rf3 Nxc3 21. Qxc3 h5 22. Rb3) 19... axb2 {[%emt 0:00:37] [#]} ({Better is} 19... h5 $14) 20. h4 $1 $16 {[%emt 0:01:09]} ({Much worse is} 20. Rxb2 $6 Ra3 $11) 20... Bxh4 {[%emt 0:01:08]} 21. gxh4 {[%emt 0:00:21]} Qxh4 {[%emt 0:00:02] [#]} 22. Rxb2 $2 {[%emt 0:00:35]} (22. Rf2 $1 $18 {[%cal Rf2h2]}) 22... Qg3+ $11 {[%emt 0:00:03] The position is equal.} 23. Kh1 {[%emt 0:00:01] aiming for Bd1.} Qh3+ {[%emt 0:00:01]} 24. Kg1 {[%emt 0:00:00] Threatens to win with Bd1.} Rxa2 {[%emt 0:00:25]} 25. Rxa2 {[%emt 0:00:02]} (25. Nxa2 $5 Qg3+ $8 26. Kh1 Qh3+ 27. Kg1 Qg3+ 28. Kh1 Qh3+ 29. Kg1 $11) 25... Qg3+ {[%emt 0:00:01]} 26. Kh1 {[%emt 0:00:01]} Qh3+ {[%emt 0:00:00]} 27. Kg1 {[%emt 0:00:00]} Qg3+ {[%emt 0:00:01]} 28. Kh1 {[%emt 0:00:01]} Qh3+ {[%emt 0:00:00]} 29. Kg1 {[%emt 0:00:00] Weighted Error Value: White=0.26 (precise) /Black=0.16 (very precise)} 1/2-1/2

[Event "AI Cup Div-1 2023"]
[Site "Online"]
[Date "2023.09.29"]
[Round "5.1"]
[White "Carlsen, Magnus"]
[Black "Vachier-Lagrave, Maxime"]
[Result "0-1"]
[Annotator "TA"]
[ECO "D20"]
[WhiteElo "2839"]
[BlackElo "2727"]
[PlyCount "114"]
[EventDate "2023.09.18"]
[EventType "k.o."]
[EventCountry "NET"]
[SourceTitle "playchess.com"]
[Source "ChessBase"]
[SourceQuality "1"]
[TimeControl "900+3"]

{[%evp 9,114,21,45,40,49,50,45,19,19,0,0,23,21,25,21,0,0,0,0,0,0,0,0,0,0,0,0,0,0,0,0,0,0,0,52,39,43,42,42,57,75,60,68,39,38,0,0,0,0,0,0,0,58,-178,-148,-236,-202,-243,-77,-124,-134,-500,-507,-472,-358,-266,-143,-125,-92,-131,-23,-32,-28,-28,-54,-444,-434,-1325,-1260,-1367,-1246,-9888,-8528,-9473,-9473,-6087,-2555,-1901,-1473,-29976,-29977,-29977,-29978,-29978,-29979,-29979,-29980,-29975,-29974,-29988,-29987,-29987,-29988,-29988,-29989,-29989,-29989]} 1. d4 {[%emt 0:00:03]} d5 {[%emt 0:00:03]} 2. c4 {[%emt 0:00:01]} dxc4 {[%emt 0:00:01]} 3. e4 {[%emt 0:00:01]} e5 {[%emt 0:00:01]} 4. Nf3 {[%emt 0:00:00]} Bb4+ {[%emt 0:00:02]} 5. Nc3 {[%emt 0:00:01]} Nf6 {[%emt 0:00:00]} 6. Nxe5 {[%emt 0:00:01] D20: Queen's Gambit Accepted: 3 e3 and 3 e4.} b5 {[%emt 0:00:01] Inhibits Qa4.} 7. f3 {[%emt 0:00:01]} O-O {[%emt 0:00:01]} 8. a3 {[%emt 0:00:01] White is slightly better.} (8. a4 $5 {[%cal Ra4b5]} c6 9. Be3 $14) 8... Ba5 {[%emt 0:00:01] [#]} 9. Be3 $146 {[%emt 0:00:00]} ({Predecessor:} 9. a4 a6 10. Be2 Nfd7 11. Be3 c6 12. Nxd7 Nxd7 13. O-O Bb7 14. Qe1 f5 15. exf5 Rxf5 {1-0 Firouzja,A (2785)-Mamedyarov,S (2738) Norway Chess 11th 2023 (2)}) 9... c5 {[%emt 0:00:00]} 10. dxc5 {[%emt 0:00:01] Threatens to win with Qxd8.} Qe8 {[%emt 0:00:02]} 11. Qd6 {[%emt 0:00:03][%cal Oa3a4]} Be6 $1 {[%emt 0:00:01]} 12. O-O-O {[%emt 0:00:03]} Qc8 {[%emt 0:00:33] [#] ...Bc7 is the strong threat.} 13. Nxb5 {[%emt 0:00:01][%cal Bc3b5,Bb5d4,Bd4e6][%mdl 32]} a6 $1 {[%emt 0:00:01]} 14. Nd4 {[%emt 0:00:01]} Bc7 {[%emt 0:00:00]} 15. Nxe6 $1 {[%emt 0:00:01]} Bxd6 {[%emt 0:00:01]} 16. Rxd6 {[%emt 0:00:00]} fxe6 {[%emt 0:00:00]} 17. Bxc4 {[%emt 0:00:01]} Re8 {[%emt 0:00:01]} 18. c6 {[%emt 0:00:16] Inhibits Nbd7.} Re7 {[%emt 0:01:46]} 19. Bb6 $1 {[%emt 0:00:03]} Nbd7 $1 {[%emt 0:00:50]} 20. cxd7 {[%emt 0:00:03]} Nxd7 {[%emt 0:00:13]} 21. Nc6 {[%emt 0:00:07]} Re8 {[%emt 0:00:15] Black is weak on the dark squares} (21... Kh8 $11 22. Ba5 (22. Nxe7 $2 Qxc4+ 23. Kb1 Nxb6 $19) 22... Nf8) 22. Be3 $14 {[%emt 0:00:37][%cal Oh1d1][%mdl 1024] White has compensation.} (22. Bxe6+ $2 Rxe6 23. Rxe6 Nxb6 $19) (22. Rxe6 $2 Kf8 23. Rxe8+ Kxe8 $19) 22... Qc7 {[%emt 0:03:36]} 23. Rhd1 {[%emt 0:00:33]} (23. Rxe6 $2 Kh8 24. Kb1 (24. Rxe8+ $2 Rxe8 25. Bd5 Nf6 $19) 24... Rxe6 25. Bxe6 Qxc6 $19) (23. Bxe6+ $2 Rxe6 24. Rxe6 Nf8 $19) 23... Nf8 {[%emt 0:00:02]} 24. Kb1 {[%emt 0:00:11]} Kh8 {[%emt 0:00:17]} 25. h4 {[%emt 0:00:48]} h6 {[%emt 0:00:17]} 26. g4 {[%emt 0:00:43]} Qf7 {[%emt 0:01:18]} 27. Ne5 {[%emt 0:00:22]} Qf6 {[%emt 0:00:02][%csl LRe5,LRh4]} 28. Bd4 {[%emt 0:00:06] And now g5 would win.} Qxh4 {[%emt 0:00:08]} 29. Bxe6 {[%emt 0:00:16] Bd5 would be deadly.} Qh2 {[%emt 0:00:54]} (29... Rxe6 30. Rxe6 Kh7 31. Rd6 $16) 30. Bd5 {[%emt 0:00:36] This pair of bishops is nice.} Kh7 {[%emt 0:00:03]} (30... Rac8 $11 31. Nc4 (31. Rxa6 $2 Qc2+ 32. Ka2 Qxd1 $19) (31. Rc6 Rxc6 32. Nxc6 Ne6 $17) 31... Kh7) 31. g5 $2 {[%emt 0:02:05]} (31. Bxa8 $14 {stays ahead.} Rxa8 32. Bc3) 31... Rac8 $19 {[%emt 0:00:35]} 32. Rc6 {[%emt 0:02:44] Prevents Qc2+.} (32. Rxa6 $2 Qc2+ 33. Ka2 Qxd1 $19) (32. Bf7 $17 {was forced.} Rxe5 33. g6+ Kh8 34. Bxe5 Qxe5 35. Rd8) 32... Rxc6 {[%emt 0:00:03]} 33. Nxc6 {[%emt 0:00:00]} hxg5 {[%emt 0:00:37]} (33... Qe2 $19 {has better winning chances.} 34. Rc1 h5) 34. Bf7 {[%emt 0:00:20]} (34. e5 $142) 34... Rc8 $17 {[%emt 0:00:16]} 35. Be5 $2 {[%emt 0:01:23][%mdl 8192]} (35. Bd5 $17 {nothing else works.}) 35... Qg2 $19 {[%emt 0:00:10]} 36. Nd4 {[%emt 0:00:50]} g4 {[%emt 0:01:42]} 37. fxg4 {[%emt 0:00:19]} Qxe4+ {[%emt 0:00:02]} ({Black should try} 37... Nd7 $19 38. Bd6 Nb6) 38. Ka2 $17 {[%emt 0:00:09][%cal Od4f5]} Rd8 {[%emt 0:01:02]} (38... Qxe5 $2 39. Rh1+) 39. Rf1 {[%emt 0:02:00] [#] Hoping for Nf3.} Qg2 {[%emt 0:00:51] Inhibits Nf3.} (39... Qxe5 $2 40. Rh1+) ({And not} 39... Rxd4 40. Bxd4 Ne6 41. Rf2 $15) ({Black should play} 39... Rd7 $1 $17 {[%cal Rd7f7] White must now prevent ...Rxf7.} 40. Nf3 Rxf7 41. Ng5+ Kg6 42. Nxe4 Rxf1) 40. Rf5 {[%emt 0:00:47][%cal Rf5h5]} g6 {[%emt 0:00:27] Dodges Rh5+} ({Much less strong is} 40... Qxg4 41. Rh5+ $16) 41. Rf6 {[%emt 0:00:25] aiming for Nf3.} Qxg4 {[%emt 0:00:13]} 42. Nf3 {[%emt 0:00:10][%mdl 8192] White is now going downhill.} ({Better is} 42. Nc6 $1 $15 Rd3 43. Rf4) 42... Rd3 $19 {[%emt 0:00:06]} 43. Bd5 {[%emt 0:00:50]} (43. Nd2 $142 Rxd2 44. Bb3) 43... Rxd5 {[%emt 0:00:08]} 44. Rf7+ {[%emt 0:00:01]} Kh6 {[%emt 0:00:01]} 45. Bg7+ {[%emt 0:00:03]} Kh5 {[%emt 0:00:03] ( -> ...Qc4+)} 46. Rxf8 {[%emt 0:00:00]} Qc4+ {[%emt 0:00:07]} 47. b3 {[%emt 0:00:01]} Qe2+ {[%emt 0:00:12]} 48. Bb2 {[%emt 0:00:02]} Kg4 {[%emt 0:00:03]} 49. a4 {[%emt 0:00:02]} Qxf3 {[%emt 0:00:11] Black mates.} 50. Rxf3 {[%emt 0:00:02]} Kxf3 {[%emt 0:00:00] KR-KB} 51. b4 {[%emt 0:00:03]} g5 {[%emt 0:00:02][%cal Bg6g5,Bg5g4,Bg4g3,Bg3g2][%mdl 32]} 52. Kb3 {[%emt 0:00:00]} g4 {[%emt 0:00:00]} 53. Kc4 {[%emt 0:00:01]} Ke4 {[%emt 0:00:06]} 54. b5 {[%emt 0:00:02]} axb5+ {[%emt 0:00:00]} 55. axb5 {[%emt 0:00:00]} g3 {[%emt 0:00:01]} 56. b6 {[%emt 0:00:02]} g2 {[%emt 0:00:01]} 57. b7 {[%emt 0:00:00]} Rd8 {[%emt 0:00:03] Excellently played by Vachier-Lagrave!   Weighted Error Value: White=0.55/Black=0.17 (very precise)} (57... g1=R $2 58. b8=Q (58. b8=B {is a self mate.} Rb1 59. B8e5 Rxe5 60. Bxe5 Kxe5 61. Kc3 Ke4 62. Kc4 Rc1+ 63. Kb4 Kd5 64. Kb3 Kd4 65. Kb2 Rc3 66. Ka2 Kc4 67. Kb2 Kd3 68. Kb1 Rb3+ 69. Ka1 Kd2 70. Ka2 Kc2 71. Ka1 Ra3#) 58... Rgg5 59. Qa8 $18) 0-1

[Event "AI Cup Div-1 2023"]
[Site "Online"]
[Date "2023.09.29"]
[Round "5.2"]
[White "Vachier-Lagrave, Maxime"]
[Black "Carlsen, Magnus"]
[Result "1-0"]
[Annotator "TA"]
[ECO "B41"]
[WhiteElo "2727"]
[BlackElo "2839"]
[PlyCount "57"]
[EventDate "2023.09.18"]
[EventType "k.o."]
[EventCountry "NET"]
[SourceTitle "playchess.com"]
[Source "ChessBase"]
[SourceQuality "1"]
[TimeControl "900+3"]

{[%evp 14,57,61,23,42,27,27,39,39,36,33,35,41,0,15,21,7,6,8,0,0,0,-10,-26,-6,-3,-14,-19,-7,-35,-43,-51,-39,-419,-377,-406,-391,-367,0,-267,0,0,1761,1766,1534,1518]} 1. e4 {[%emt 0:00:03]} c5 {[%emt 0:00:03]} 2. Nf3 {[%emt 0:00:02]} e6 {[%emt 0:00:05]} 3. d4 {[%emt 0:00:06]} cxd4 {[%emt 0:00:02]} 4. Nxd4 {[%emt 0:00:00]} a6 {[%emt 0:00:16]} 5. c4 {[%emt 0:00:11]} Nf6 {[%emt 0:00:01]} 6. Nc3 {[%emt 0:00:02]} Qc7 {[%emt 0:00:01]} 7. a3 {[%emt 0:00:11]} b6 {[%emt 0:00:01]} 8. Bd3 {[%emt 0:00:14]} Bb7 {[%emt 0:00:07] B41: Sicilian: Kan Variation: 5 c4.} 9. O-O {[%emt 0:00:03]} Bd6 {[%emt 0:00:28]} 10. f4 {[%emt 0:00:45] e5 is the strong threat.} Bc5 {[%emt 0:00:26] White is slightly better.} 11. Be3 {[%emt 0:00:02]} Nc6 {[%emt 0:00:12]} 12. Nc2 {[%emt 0:00:02]} d6 {[%emt 0:00:13][%cal Bd7d6,Bd6c5,Bc5d4][%mdl 32] [#]} 13. Qd2 $146 {[%emt 0:00:42]} ({Predecessor:} 13. Qf3 O-O 14. b4 Bxe3+ 15. Qxe3 Ne7 16. Rac1 b5 17. e5 dxe5 18. fxe5 Nd7 19. cxb5 Nxe5 {0-1 Reina Guerra,E (1876)-Biedermann,K (2065) PER LIPEAD40 pr-55 email 2012}) 13... O-O {[%emt 0:00:02]} (13... Na5 $5 {[%cal Ra5b3]}) 14. Rae1 {[%emt 0:00:13]} Ng4 {[%emt 0:01:10]} 15. Bxc5 {[%emt 0:00:06]} dxc5 {[%emt 0:00:01]} 16. e5 {[%emt 0:02:24]} Rad8 {[%emt 0:00:24]} 17. Qe2 {[%emt 0:00:05]} Nh6 {[%emt 0:00:14][%cal Bg4h6,Bh6f5,Bf5e3][%mdl 32]} 18. Rd1 {[%emt 0:01:54]} Nd4 {[%emt 0:01:55]} 19. Nxd4 {[%emt 0:00:02]} cxd4 {[%emt 0:00:00]} 20. Ne4 {[%emt 0:00:01]} Nf5 {[%emt 0:00:02] Prevents Nd6. White must now prevent ...Ne3.} 21. Rf3 {[%emt 0:00:09][%cal Bf1f3,Bf3h3,Bh3h6,Bh6f6][%mdl 32]} Bxe4 {[%emt 0:00:48]} (21... Ne3 22. Nf6+ gxf6 23. Bxh7+ Kh8 24. Rg3 $18) 22. Bxe4 {[%emt 0:02:26]} Ne3 {[%emt 0:00:03]} 23. Bxh7+ $2 {[%emt 0:00:01][%mdl 8192]} Kxh7 $19 {[%emt 0:00:01]} 24. Rh3+ {[%emt 0:00:00]} Kg8 {[%emt 0:00:01]} 25. Qh5 {[%emt 0:00:01][%csl Gh3][%cal Rh5h7] [#]} f5 $2 {[%emt 0:00:05]} ({Black should try} 25... f6 $19 26. Qh7+ (26. exf6 $2 Rxf6 $19) 26... Kf7 27. exf6 Rg8) 26. Qh7+ $1 $11 {[%emt 0:00:02]} ({Not} 26. exf6 $2 Rxf6 $19) 26... Kf7 {[%emt 0:00:02] Strongly threatening ...Rh8.} 27. Rh6 $1 {[%emt 0:00:01]} Qxc4 $2 {[%emt 0:04:11][%mdl 8192]} (27... Ke8 $11 28. Rxe6+ Kd7) 28. Rf6+ $18 {[%emt 0:00:12]} ({Wrong is} 28. Qg6+ $2 Ke7 29. b3 Qxb3 30. Qxg7+ Rf7 31. Qg5+ Kd7 32. Rxd4+ Nd5 $19) 28... Ke8 {[%emt 0:00:03]} 29. Qxg7 {[%emt 0:00:01] White used his chance. Magnificent play by Vachier-Lagrave!   Weighted Error Value: White=0.33/Black=0.50} 1-0

[Event "AI Cup Div-1 2023"]
[Site "Online"]
[Date "2023.09.26"]
[Round "51.1"]
[White "Nakamura, Hikaru"]
[Black "Giri, Anish"]
[Result "0-1"]
[Annotator "TA"]
[ECO "A03"]
[WhiteElo "2780"]
[BlackElo "2760"]
[PlyCount "58"]
[EventDate "2023.09.18"]
[EventType "k.o."]
[EventCountry "NET"]
[SourceTitle "playchess.com"]
[Source "ChessBase"]
[SourceQuality "1"]
[TimeControl "900+3"]

{[%evp 9,58,-14,-12,-8,-9,-12,-22,-14,-14,-43,-41,-33,-44,-45,-43,-73,-70,-86,-86,-97,-108,-181,-87,-172,-74,-91,-98,-187,-172,-172,-120,-260,-260,-410,-406,-400,-400,-434,-430,-456,-456,-450,-439,-443,-448,-449,-441,-409,-412,-29993,-29994]} 1. b3 {[%emt 0:00:03]} d5 {[%emt 0:00:09]} 2. Bb2 {[%emt 0:00:06]} c5 {[%emt 0:00:02]} (2... Bf5 3. Nf3 e6 4. g3 h6 5. Bg2 Nf6 6. Ne5 Be7 7. d3 O-O 8. Nd2 c6 9. e4 Bh7 10. Qe2 Nbd7 11. Nxd7 Nxd7 12. O-O a5 13. a4 Bf6 14. e5 Be7 15. Rfd1 b5 16. c4 Nc5 17. d4 Nd3 {½-½ Nakamura,H (2736)-Giri,A (2774) Speed Chess Chess.com INT blitz 2021 (2.35)}) 3. e3 {[%emt 0:00:05]} Nf6 {[%emt 0:00:01]} 4. f4 {[%emt 0:00:30]} g6 {[%emt 0:00:01]} 5. Bb5+ {[%emt 0:00:05]} Bd7 {[%emt 0:00:06]} 6. Bxd7+ {[%emt 0:00:04] A03: Bird's Opening with 1...d5.} Qxd7 {[%emt 0:00:09]} (6... Kxd7 7. c4 $16) 7. Nf3 {[%emt 0:00:02]} Bg7 {[%emt 0:00:01]} 8. Qe2 {[%emt 0:00:16] The position is equal.} O-O {[%emt 0:00:05]} 9. d3 {[%emt 0:00:03]} Nc6 {[%emt 0:00:14]} 10. Nbd2 {[%emt 0:00:48]} d4 {[%emt 0:00:21] Hoping for ...dxe3.} 11. e4 {[%emt 0:00:01] [#]} b5 $146 {[%emt 0:00:12]} ({Predecessor:} 11... e5 12. Nxe5 Nxe5 13. fxe5 Ng4 14. Nf3 Ne3 15. Bc1 Bh6 16. Bxe3 Bxe3 17. c4 a6 {1-0 Krizsany,L (2347)-Turzo,A (2288) Budapest Vezerkepzo IM 03 2023 (3)}) 12. O-O {[%emt 0:00:06]} Ng4 {[%emt 0:00:10]} 13. Rfe1 {[%emt 0:00:24]} Bh6 {[%emt 0:01:49] Black is more active.} (13... Ne3 $6 14. Nf1 $11) 14. g3 {[%emt 0:00:01] [#]} e5 $1 {[%emt 0:00:04]} 15. fxe5 {[%emt 0:00:05]} (15. f5 $17) 15... Rae8 {[%emt 0:00:52]} (15... Ngxe5 16. a4 $15) (15... Ncxe5 16. Nxe5 Nxe5 17. Bc1 $15) (15... f5 $19 {and Black stays clearly on top. Threatens to win with ...Be3+.} 16. Rf1 Ncxe5 17. Nxe5 Nxe5) 16. a4 {[%emt 0:03:15]} (16. Ba3 $17 Qe7 17. Kh1) 16... a6 {[%emt 0:00:02]} (16... Ncxe5 17. axb5 Be3+ 18. Kg2 $17 (18. Kf1 $2 f5 $19)) (16... Be3+ $19 17. Kg2 Ncxe5 18. axb5 (18. Nxe5 $2 Rxe5 19. axb5 Rh5 $19) 18... Nxf3 19. Nxf3 f5) 17. axb5 {[%emt 0:00:02]} axb5 {[%emt 0:00:00]} 18. Bc1 {[%emt 0:00:52]} (18. Ba3 $17 {is a better defense.} b4 19. Bc1) 18... Be3+ {[%emt 0:02:31]} (18... Ncxe5 19. Nxe5 Nxe5 20. Nf3 Bxc1 21. Nxe5 Rxe5 22. Rexc1 $15) 19. Kg2 {[%emt 0:00:02]} Nf2 {[%emt 0:00:00]} (19... Ncxe5 20. Nxe5 Nxe5 21. Nf3 $17) (19... f5 $19 {...f4 would be deadly.} 20. exf6 Rxf6) 20. Ng1 {[%emt 0:00:04] This costs White the game.} (20. Nf1 $17 {was worth a try.} Qh3+ 21. Kg1 Bxc1 22. Rexc1) 20... Nxe5 $19 {[%emt 0:00:06] ...f5 is the strong threat.} ({Weaker is} 20... Rxe5 21. Ndf3 f5 22. Bxe3 (22. Nxe5 Nxe5 23. Bxe3 dxe3 $11) 22... dxe3 23. Qxe3 $14 (23. Nxe5 Nxe5 24. Qxe3 fxe4 $11)) 21. Nf1 {[%emt 0:00:41]} (21. Ndf3 {was the only chance.} Nxf3 22. Nxf3 Qh3+ 23. Kg1 Nxd3+ {[%mdl 64] Discovered Attack, Double Attack} 24. Bxe3 Nxe1 25. Qxe1 dxe3 26. Qxe3) 21... Bxc1 {[%emt 0:00:30]} 22. Raxc1 {[%emt 0:00:06] [#]} f5 $1 {[%emt 0:00:24]} 23. Qxf2 {[%emt 0:02:04]} (23. Nd2 Neg4) 23... fxe4 {[%emt 0:00:03][%mdl 64] Discovered Attack} 24. Qd2 {[%emt 0:00:01]} e3 {[%emt 0:01:56]} 25. Nxe3 {[%emt 0:00:02]} Qc6+ {[%emt 0:02:11]} (25... dxe3 $2 {is the wrong capture.} 26. Rxe3 Qd5+ 27. Re4 Nxd3 28. Qxd3 $19) 26. Kh3 {[%emt 0:00:00]} dxe3 {[%emt 0:00:13]} 27. Rxe3 {[%emt 0:00:08]} Qe6+ {[%emt 0:00:29]} 28. Kg2 {[%emt 0:00:02]} Qd5+ {[%emt 0:00:01]} 29. Kh3 {[%emt 0:00:11] [#]} (29. Re4 $19 Nxd3 {[%mdl 64] Remove Defender} 30. Qxd3 Qxe4+ 31. Qxe4 Rxe4 32. h4) 29... Ng4 $1 {[%emt 0:00:10][%mdl 576] Discovered Attack. A cool game by Giri.   Weighted Error Value: White=0.56/Black=0.13 (very precise)} 0-1